Workbook

Sheet Ф30(3.2100)
J1: Приложение №5
A3: Наименование отчитывающейся организации | D3: ГАУЗ "ОРЕНБУРГСКАЯ" РБ
A5: 1. Работа врачей медицинской организации в амбулаторных условиях
A6: (нарастающим итогом)
A7: Наименование | B7: № стр. | C7: Число посещений | E7: из общего числа посещений сделано по поводу заболевания | G7: Число посещений врачами на дому
C8: врачей, включая профилак-тические - всего | D8: из них: | G8: всего | H8: из них: | I8: из общего числа посещений врачами на дому сделано по поводу заболевания
D9: детьми 0-17 лет | H9: детьми 0-17 лет
E10: взрослыми 18 лет и старше (из гр. 3) | F10: детьми 0-17 лет (из гр.4) | I10: взрослыми 18 лет и старше (из гр. 7) | J10: детьми 0-17 лет (из гр.8)
A11: 1 | B11: 2 | C11: 3 | D11: 4 | E11: 5 | F11: 6 | G11: 7 | H11: 8 | I11: 9 | J11: 10
A12: Врачи – всего | B12: 1 | C12: =SUM(C13:C94)-C43-C75-C76 -> 301466 | D12: 86728 | E12: 185905 | F12: 42765 | G12: 26736 | H12: 10003 | I12: 22377 | J12: 7103
A13: акушеры – гинекологи | B13: 3 | C13: =12244+1349+2290+3378 -> 19261 | D13: =1526+175+107+206 -> 2014 | E13: =7742+595+1471+3002 -> 12810 | F13: =255+15+16+44 -> 330 | G13: =92+9 -> 101
A14: аллергологи – иммунологи | B14: 5 | C14: 592 | D14: 589 | E14: 284 | F14: 281
A15: анестезиологи – реаниматологи | B15: 6
A16: врачи здравпунктов | B16: 9
A17: гастроэнтерологи | B17: 10
A18: гематологи | B18: 11
A19: генетики | B19: 12
A20: гериатры | B20: 13
A21: дерматовенерологи | B21: 15 | C21: 11098 | D21: 3244 | E21: 5923 | F21: 1868 | G21: 1 | H21: 1
A22: диабетологи | B22: 16
A23: диетологи | B23: 17
A24: инфекционисты | B24: 18 | C24: 2431 | D24: 1156 | E24: 1401 | F24: 321
A25: кардиологи | B25: 19 | C25: 5336 | D25: 11 | E25: 5333 | F25: 11 | G25: 1 | I25: 1
A26: кардиологи детские | B26: 20 | C26: 418 | D26: 418 | E26: 231 | F26: 231
A27: клинические микологи | B27: 22
A28: колопроктологи | B28: 23
A29: косметологи | B29: 24
A30: мануальной терапии | B30: 28 | C30: 3215 | E30: 3215
A31: неврологи | B31: 30 | C31: 15333 | D31: 7512 | E31: 8077 | F31: 1540 | G31: 71 | H31: 2 | I31: 66 | J31: 1
A32: нейрохирурги | B32: 31
A33: неонатологи | B33: 32
A34: нефрологи | B34: 33
A35: общей практики (семейные) | B35: 34 | C35: 28952 | D35: 11762 | E35: 19977 | F35: 6092 | G35: 4728 | H35: 1718 | I35: 3926 | J35: 1346
A36: онкологи | B36: 35 | C36: 5257 | D36: 25 | E36: 5218 | F36: 22
A37: онкологи детские | B37: 36
A38: остеопаты | B38: 38
A39: оториноларингологи | B39: 39 | C39: =10598+1027 -> 11625 | D39: =5977+211 -> 6188 | E39: =4282+761 -> 5043 | F39: =1259+201 -> 1460 | G39: =2+25 -> 27 | I39: =1+21 -> 22
A40: офтальмологи | B40: 40 | C40: 15618 | D40: 8085 | E40: 7285 | F40: 1557 | G40: 51 | H40: 2 | I40: 45 | J40: 1
A41: офтальмологи-протезисты | B41: 41
A42: педиатры – всего | B42: 44 | C42: =48919+1746 -> 50665 | D42: =8919+1746 -> 10665 | E42: =23611+1009 -> 24620 | F42: =23611+1009 -> 24620 | G42: 8267 | H42: 8267 | I42: 5748 | J42: 5748
A43: из них - педиатры участковые (включая педиатров участковых приписных участков) | B43: 45 | C43: 48919 | D43: 48919 | E43: 23611 | F43: 23611 | G43: 8267 | H43: 8267 | I43: 5748 | J43: 5748
A44: по авиационной и космической медицине | B44: 47
A45: по водолазной медицине | B45: 48
A46: по лечебной физкультуре | B46: 54 | C46: 5881 | D46: 947 | E46: 5881 | F46: 947
A47: по медико-социальной экспертизе | B47: 55
A48: по медицинской профилактике | B48: 56
A49: по медицинской реабилитации | B49: 57
A50: по паллиативной медицинской помощи | B50: 59
A51: по рентгенэдоваскулярным диагностике и лечению | B51: 61
A52: по спортивной медицине | B52: 63
A53: приемного отделения | B53: 64
A54: профпатологи | B54: 65 | C54: 1636 | D54: 8 | E54: 194 | G54: 1
A55: психиатры | B55: 66 | C55: =4796+1264 -> 6060 | D55: =6060 -> 6060 | E55: =1893+171 -> 2064 | F55: 336
A56: психиатры детские | B56: 68
A57: психиатры подростковые | B57: 70
A58: психиатры-наркологи | B58: 72 | C58: =4309+67+2922+327 -> 7625 | D58: =4309+67+2922+327 -> 7625 | E58: =789+5+104+118 -> 1016 | F58: =11+53 -> 64
A59: психотерапевты | B59: 74
A60: пульмонологи | B60: 75
A61: радиологи | B61: 76
A62: радиотерапевты | B62: 77
A63: ревматологи | B63: 78
A64: рентгенологи | B64: 79
A65: рефлексотерапевты | B65: 80
A66: сексологи | B66: 81
A67: скорой медицинской помощи | B67: 82
A68: стажеры | B68: 83
A69: судебно-медицинские эксперты | B69: 90
A70: судебно-психиатрические эксперты | B70: 91
A71: судовые врачи | B71: 92
A72: сурдологи-оториноларингологи | B72: 93
A73: сурдологи-протезисты | B73: 94
A74: терапевты - всего | B74: 95 | C74: =65068+2654 -> 67722 | D74: =90+38 -> 128 | E74: =51228+115 -> 51343 | F74: 70 | G74: =13439+1 -> 13440 | H74: 11 | I74: 12560 | J74: 6
A75: из них - терапевты участковые | B75: 96 | C75: 65068 | D75: 90 | E75: 51228 | F75: 70 | G75: 13439 | H75: 11 | I75: 12560 | J75: 6
A76: терапевты подростковые | B76: 99
A77: токсикологи | B77: 100
A78: травматологи - ортопеды | B78: 101 | C78: 9907 | D78: 3728 | E78: 6699 | F78: 570 | G78: 4 | H78: 1 | I78: 3
A79: трансфузиологи | B79: 102
A80: урологи | B80: 104 | C80: 3866 | D80: 1419 | E80: 2450 | F80: 70
A81: урологи-андрологи детские | B81: 105
A82: фармакологи клинические | B82: 106
A83: физиотерапевты | B83: 107 | C83: 6051 | D83: 822 | E83: 6051 | F83: 822
A84: фтизиатры | B84: 108 | C84: 4044 | D84: 4044 | E84: 33 | F84: 33
A85: хирурги | B85: 111 | C85: =5753+461+82 -> 6296 | D85: =336+461+82 -> 879 | E85: =4743+262+1563 -> 6568 | F85: =85+262+76 -> 423 | G85: =4+36 -> 40 | I85: 3
A86: хирурги детские | B86: 112 | C86: 7395 | D86: 7394 | E86: 1079 | F86: 1079 | G86: 2 | H86: 1 | I86: 1 | J86: 1
A87: хирурги пластические | B87: 113
A88: хирурги сердечно-сосудистые | B88: 114
A89: хирурги торакальные | B89: 115
A90: хирурги челюстно-лицевые | B90: 116
A91: эндокринологи | B91: 117 | C91: =5179+3 -> 5182 | D91: =2002+3 -> 2005 | E91: =3107+3 -> 3110 | F91: =15+3 -> 18 | G91: 2 | I91: 2
A92: эндокринологи детские | B92: 118
A93: эндоскописты | B93: 119
A94: прочие | B94: 121
A96: 2. Посещения к среднему медицинскому персоналу на ФАПах
A97: Число посещений - всего | B97: 1 | C97: 77311
A99: 3. Работа стоматологического(зубоврачебного) кабинета
A100: Число посещений стоматологов и зубных врачей | B100: 1 | C100: 52856
E103: (Ф.И.О.)
A106: (номер контактного телефона) | D106: (дата составления документа)
